Cogmind - Beta 11 X8 @@@ ROGUE MODE // 2021.11.22 @ 23:21:35 Player: Runia Result: Destroyed by P-60 Hacker with Shock Rifle Performance ------------- Evolutions (3) 1500 Regions Visited (7) 1400 Robots Destroyed (150) 750 Value Destroyed (4183) 4183 Prototype IDs (23) 460 Alien Tech Used (0) 0 Bonus (1683) 1683 TOTAL SCORE: 9976 Bonus ------- High Alert Combat Kills 1098 Entered Garrisons 200 Used RIF Installer 500 Friendly Fire -115 Cogmind --------- Core Integrity 0/700 Matter 12/300 Energy 17/100 System Corruption 5% Temperature Cool (0) Movement Core (50) Location -7/Factory Parts ------- > --- POWER (1) -------- (None) > --- PROPULSION (4) --- (None) > --- UTILITY (5) ------ Improved Signal Interpreter Relay Coupler [NC] (19) > --- WEAPON (3) ------- Katana > --- INVENTORY (5) ---- Reinforced Deuterium Engine Structural Scanner Improved Medium Armor Plating Heavy Assault Rifle Proton Missile Launcher Peak State ------------ > --- POWER ------------ Improved Deuterium Engine > --- PROPULSION ------- Light Treads Light Treads Armored Wheel Armored Wheel > --- UTILITY ---------- Huge Storage Unit Improved Sensor Array Improved Signal Interpreter Improved Medium Armor Plating Relay Coupler [NC] > --- WEAPON ----------- Enhanced Autogun Enhanced Autogun Precision Assault Rifle > --- INVENTORY -------- Reinforced Deuterium Engine Light Treads Improved Heat Sink Structural Scanner Hardened Medium Armor Plating Improved Medium Armor Plating Authchip [Processor] Relay Coupler [NC] Relay Coupler [Swarmer] Relay Coupler [Grunt] Relay Coupler [Grunt] Relay Coupler [Sentry] Relay Coupler [Hunter] Drone Bay Improved EM Pulse Cannon Heavy Assault Rifle Heavy Assault Rifle Heavy Assault Rifle Heavy Assault Rifle Rocket Launcher Rocket Launcher Mini Grenade Launcher Remote Datajack Plasma Cutter Katana [Rating: 42] Favorites ----------- Power Reinforced Ion Engine Engine Reinforced Ion Engine Power Core Light Nuclear Core Propulsion Light Treads Treads Light Treads Leg Improved Aluminum Leg Wheel Armored Wheel Utility Huge Storage Unit Device Improved Heat Sink Storage Huge Storage Unit Processor Improved Signal Interpreter Hackware Relay Coupler [NC] Protection Medium Armor Plating Weapon Heavy Assault Rifle Energy Gun Small Laser Energy Cannon Advanced Beam Cannon Ballistic Gun Heavy Assault Rifle Launcher Mini Grenade Launcher Special Weapon Plasma Cutter Slashing Weapon Katana Special Melee Weapon Datajack Build | -11 -10 -10 -9 -9 -9 -9 -7 ------- Run | Scr Mat Min Mat Sto Gar Rec Fac Slots Evolved 6 | . . . 2 . . . 4 Power . | . . . . . . . . Propulsion 2 | . . . . . . . 2 Utility 3 | . . . 2 . . . 1 Weapon 1 | . . . . . . . 1 Parts Attached 151 | 3 12 12 29 16 26 2 51 Power 5 | . 1 . 2 . 1 . 1 Engine 4 | . . . 2 . 1 . 1 Core 1 | . 1 . . . . . . Reactor . | . . . . . . . . Propulsion 26 | 2 . 3 4 3 7 . 7 Treads 18 | 2 . 1 1 3 6 . 5 Leg 4 | . . 2 2 . . . . Wheel 4 | . . . 1 . 1 . 2 Hover . | . . . . . . . . Flight . | . . . . . . . . Utility 39 | . 2 . 6 8 4 . 19 Device 14 | . 1 . 1 1 2 . 9 Storage 3 | . 1 . 1 1 . . . Processor 1 | . . . . . . . 1 Hackware 4 | . . . . . . . 4 Protection 17 | . . . 4 6 2 . 5 Artifact . | . . . . . . . . Weapon 81 | 1 9 9 17 5 14 2 24 Energy Gun 13 | 1 5 5 2 . . . . Energy Cannon 6 | . . . 2 . 1 1 2 Ballistic Gun 29 | . . . 8 4 8 . 9 Ballistic Cannon . | . . . . . . . . Launcher 24 | . 4 4 5 1 4 1 5 Special Weapon 3 | . . . . . 1 . 2 Impact Weapon . | . . . . . . . . Slashing Weapon 2 | . . . . . . . 2 Piercing Weapon . | . . . . . . . . Special Melee Weapon 4 | . . . . . . . 4 Unidentified Prototypes 2 | . . . 1 . . . 1 Parts Lost 21 | . . 1 3 3 2 . 12 Power 1 | . . . . . . . 1 Propulsion 7 | . . 1 . . 1 . 5 Utility 9 | . . . 3 2 1 . 3 Weapon 4 | . . . . 1 . . 3 Highest Loss Streak 12 | . . 1 1 2 2 . 12 Average Slot Usage (%) 95 | . 99 99 93 97 96 88 96 Engine 8 | . 10 . 8 11 11 11 6 Core 1 | . 3 14 2 . . . . Treads 15 | . 28 26 2 19 18 11 14 Leg 2 | . . . 17 . . . . Wheel 6 | . . . 2 1 3 11 14 Device 12 | . 13 14 12 5 18 11 7 Storage 10 | . 14 14 11 11 11 11 7 Processor 1 | . . . . . . . 6 Hackware 1 | . . . . . . . 5 Protection 10 | . . . 15 25 11 11 7 Energy Gun 5 | . 27 27 9 . . . . Energy Cannon 3 | . . . 2 1 3 10 3 Ballistic Gun 13 | . . . 10 19 17 11 17 Naked Turns . | . . . . . . . . Heaviest Build 117 | 12 28 30 63 107 113 113 117 Greatest Support 40 | 40 40 40 26 40 40 12 24 Greatest Overweight (x) 9 | . . 1 3 4 9 9 9 Average Overweight (x) 3 | . . . 1 2 5 9 4 Largest Inventory Capacity 25 | 8 15 15 20 25 25 25 25 Average Capacity 21 | 8 11 15 16 22 25 25 24 Most Carried 25 | 6 11 15 20 22 25 25 25 Average Carried 20 | 3 8 13 14 20 22 24 24 Final Capacity 25 | 8 15 15 20 25 25 25 5 Final Carried 25 | 1 10 14 20 22 25 25 5 Class Distribution -------------------- 39% | Scavenger-Mutant 36% | Mutant 8% | Bothacker-Skirmisher 7% | Bothacker-Tank 4% | Bothacker-Mutant Dominant Class ---------------- Mutant | -10/Materials Mutant | -10/Mines Mutant | -9/Materials Mutant | -9/Storage Scavenger-Mutant | -9/Garrison Scavenger-Mutant | -9/Recycling Bothacker-Skirmisher | -7/Factory Resources | -11 -10 -10 -9 -9 -9 -9 -7 ----------- Run | Scr Mat Min Mat Sto Gar Rec Fac Matter Collected 3382 | 200 350 125 565 393 682 121 946 Remotely . | . . . . . . . . Salvage Created 4332 | . 540 173 627 552 749 111 1580 Parts 282 | . 34 13 60 35 51 12 77 Haulers Intercepted 6 | . 2 . 2 2 . . . Recyclers Shooed 8 | . 2 . 1 2 . 2 1 Parts Field Recycled . | . . . . . . . . Retrieved Matter . | . . . . . . . . Parts Self-Destructed . | . . . . . . . . Prevented . | . . . . . . . . Kills | -11 -10 -10 -9 -9 -9 -9 -7 ------- Run | Scr Mat Min Mat Sto Gar Rec Fac Combat Hostiles Destroyed 112 | . 11 7 22 12 19 5 36 Guns 55 | . 6 2 6 9 8 2 22 Cannons 9 | . . . 3 1 3 . 2 AOE 46 | . 4 4 13 2 8 3 12 Classes Destroyed 17 | . 5 1 3 . 1 1 6 Worker 5 | . . 1 1 1 . . 2 Builder 15 | . 3 . 6 . . 1 5 Tunneler 2 | . . . 1 . . . 1 Hauler 6 | . 2 . 2 2 . . . Recycler 5 | . 2 . 1 . . 1 1 Mechanic 1 | . . . . . . . 1 Operator 1 | . . . 1 . . . . Drone 5 | . . . . . . 5 . Watcher 2 | . . . . . . . 2 Swarmer 39 | . 3 3 12 3 10 . 8 Grunt 44 | . 8 4 9 5 2 . 16 Brawler 3 | . . . . . 2 . 1 Duelist 2 | . . . . . . . 2 Protector 1 | . . . . . . . 1 Sentry 11 | . . . 1 4 5 . 1 Hunter 4 | . . . . . . . 4 Programmer 4 | . . . . . . . 4 Best Kill Streak 9 | . 9 3 8 3 4 2 9 Combat Bots Only 5 | . 5 3 5 3 4 2 5 Max Kills in Single Turn 4 | . 3 2 4 2 2 1 3 Gunslinging 1 | . . . . . . . 1 Exploded 3 | . 1 2 3 2 2 1 2 Melee . | . . . . . . . . Uniques/NPCs Destroyed . | . . . . . . . . Combat | -11 -10 -10 -9 -9 -9 -9 -7 -------- Run | Scr Mat Min Mat Sto Gar Rec Fac Damage Taken 5839 | . 433 235 674 962 652 78 2805 Core 1118 | . 109 82 53 87 84 . 703 Absorbed by Shields . | . . . . . . . . Core Remaining (%) 55 | 100 . 23 . . . 44 . Volleys Fired 410 | . 49 22 75 54 102 22 86 Largest 3 | . 2 2 2 2 2 2 3 Hottest 124 | . 80 80 91 91 91 91 124 Shots Fired 767 | . 93 40 127 107 151 39 210 Gun 582 | . 88 36 95 100 88 17 158 Cannon 84 | . . . 11 6 21 17 29 Launcher 59 | . 5 4 21 1 7 5 16 Special 42 | . . . . . 35 . 7 Kinetic 415 | . . . 52 100 88 17 158 Thermal 286 | . 88 36 54 6 56 17 29 Explosive 58 | . 5 4 21 1 7 5 15 Electromagnetic 1 | . . . . . . . 1 Robot Hit Streak 43 | . 22 14 8 9 43 3 12 Robot Miss Streak 7 | . 4 2 5 6 4 7 7 Penetration Max . | . . . . . . . . Secondary Targets 4 | . . . . . 2 . 2 Max Gunslinging Chain 1 | . . . . . 1 . 1 Shots Hit Robots 498 | . 62 26 66 69 112 15 148 Core Hits 268 | . 26 10 53 21 41 7 110 Critical Kills 1 | . . . . . 1 . . Critical Parts Destroyed 3 | . . . 2 . . . 1 Critical Strikes 6 | . . . 2 . 3 . 1 Destroy 4 | . . . 2 . 1 . 1 Sever 2 | . . . . . 2 . . Melee Attacks 9 | . . . . . . . 9 Impact . | . . . . . . . . Slashing 6 | . . . . . . . 6 Piercing . | . . . . . . . . Sneak Attacks 3 | . . . . . . . 3 Combat Hostiles . | . . . . . . . . Follow-up Attacks . | . . . . . . . . Damage Inflicted 12315 | . 1079 608 2199 1214 1934 473 4808 Guns 5545 | . 675 289 555 979 724 153 2170 Cannons 1123 | . . . 166 82 348 102 425 Explosions 5142 | . 404 319 1478 144 493 218 2086 Melee 127 | . . . . . . . 127 Ramming 9 | . . . . 9 . . . Kinetic 4257 | . . . 231 979 724 153 2170 Thermal 2780 | . 675 289 490 82 717 102 425 Explosive 4889 | . 404 319 1478 144 493 218 1833 Electromagnetic 253 | . . . . . . . 253 Impact . | . . . . . . . . Slashing 127 | . . . . . . . 127 Piercing . | . . . . . . . . Highest Corruption 5 | . . . . . . . 5 Average Corruption 2 | . . . . . . . 2 Corruption Purged . | . . . . . . . . Effects 20 | . . . . . . . 20 Message Errors 7 | . . . . . . . 7 Matter Fused 6 | . . . . . . . 6 Heat Flow Errors 2 | . . . . . . . 2 Energy Discharges 3 | . . . . . . . 3 Weapon Failures 2 | . . . . . . . 2 Overload Shots . | . . . . . . . . Overflow Damage 265 | . . 4 148 . 9 9 95 Projectiles 9 | . . . . . 9 . . Explosions 198 | . . 4 148 . . 9 37 Melee 58 | . . . . . . . 58 Knockbacks . | . . . . . . . . Impact . | . . . . . . . . Kinetic . | . . . . . . . . Secondary . | . . . . . . . . Self-Inflicted Damage 307 | . 19 32 63 . 25 79 89 Shots 12 | . 1 1 2 . 2 2 4 Rammed 2 | . . . . 2 . . . Targets Rammed 2 | . . . . 2 . . . Kicked . | . . . . . . . . Crushed . | . . . . . . . . Highest Temperature 327 | . 246 213 188 327 64 36 260 Average Temperature 70 | . 65 65 47 119 21 9 66 Received Heat Transfer 1407 | . 198 93 231 357 123 . 405 Effects 1 | . . . . . . . 1 Energy Bleed 1 | . . . . . . . 1 Siege Activations . | . . . . . . . . Robots Corrupted . | . . . . . . . . Combat Hostiles . | . . . . . . . . Parts Fried . | . . . . . . . . Impact Corruptions . | . . . . . . . . Robots Melted 2 | . 1 1 . . . . . Combat Hostiles 2 | . 1 1 . . . . . Parts Melted 7 | . 2 2 . . 1 . 2 Heat Transferred 6055 | . 1525 625 1021 148 1848 185 703 Parts Sabotaged . | . . . . . . . . Parts Stolen . | . . . . . . . . Parts Stripped . | . . . . . . . . Power Chain Reactions . | . . . . . . . . Missiles Intercepted . | . . . . . . . . Alert | -11 -10 -10 -9 -9 -9 -9 -7 ------- Run | Scr Mat Min Mat Sto Gar Rec Fac Peak Influence 1430 | . 284 238 436 370 811 487 1430 Initial 975 | . . 88 31 68 166 364 975 Average 484 | . 138 129 151 234 524 299 1068 Maximum Alert Level 4 | . 1 1 2 1 3 2 4 Low Security (%) 31 | 100 74 78 73 41 9 29 . Level 1 22 | . 25 21 23 58 11 55 . Level 2 20 | . . . 2 . 66 14 . Level 3 16 | . . . . . 11 . 57 Level 4 9 | . . . . . . . 42 Level 5 . | . . . . . . . . High Security . | . . . . . . . . Max Security . | . . . . . . . . Squads Dispatched 25 | . 3 . 6 4 . . 12 Investigation 5 | . 2 . 1 1 . . 1 Extermination 3 | . . . . . . . 3 Reinforcement 12 | . 1 . 5 1 . . 5 Assault 3 | . . . . . . . 3 Garrison 2 | . . . . 2 . . . Intercept . | . . . . . . . . Construction Impeded 3 | . . . 1 . . . 2 Haulers Reinforced . | . . . . . . . . Active Scanning Responses . | . . . . . . . . Cargo Convoy Interrupts 1 | . . . . . . . 1 Stealth | -11 -10 -10 -9 -9 -9 -9 -7 --------- Run | Scr Mat Min Mat Sto Gar Rec Fac Distress Signals 7 | . 4 . 1 1 . . 1 Communications Jammed . | . . . . . . . . Distress Signals . | . . . . . . . . Times Spotted 176 | . 19 7 36 20 21 10 63 Peak Tracking Total 14 | . 4 3 5 5 4 1 14 Tactical Retreats 9 | . . . 3 . 2 . 4 Traps | -11 -10 -10 -9 -9 -9 -9 -7 ------- Run | Scr Mat Min Mat Sto Gar Rec Fac Traps Triggered 9 | . . . 2 3 1 . 3 Indirectly . | . . . . . . . . Trap Hack Attempts . | . . . . . . . . Triggered . | . . . . . . . . Disarmed . | . . . . . . . . Reprogrammed . | . . . . . . . . Reused . | . . . . . . . . Traps Extracted . | . . . . . . . . Installed . | . . . . . . . . Triggered 1 | . . . . . . . 1 Machines | -11 -10 -10 -9 -9 -9 -9 -7 ---------- Run | Scr Mat Min Mat Sto Gar Rec Fac Machines Disabled 10 | . 1 2 4 1 2 . . Max in Single Turn 1 | . 1 1 1 1 1 . . Garrison Access 1 | . . . . . . . 1 Garrison Relay 2 | . . . . . 2 . . Machines Sabotaged . | . . . . . . . . Garrisons Compromised 1 | . . . . . . . 1 Overloaded Fab Kills . | . . . . . . . . Hacking | -11 -10 -10 -9 -9 -9 -9 -7 --------- Run | Scr Mat Min Mat Sto Gar Rec Fac Machines Accessed 30 | . 4 1 3 4 . 10 8 Terminals 15 | . 2 1 2 2 . 6 2 Fabricators 3 | . . . . . . . 3 Repair Stations 3 | . . . . 1 . . 2 Recycling Units 7 | . 2 . . . . 4 1 Scanalyzers 1 | . . . 1 . . . . Garrison Access 1 | . . . . 1 . . . Total Hacks 70 | . 9 3 13 6 . 20 19 Successful 44 | . 6 1 11 3 . 12 11 Failed 26 | . 3 2 2 3 . 8 8 Catastrophic 4 | . . . 1 1 . 2 . Database Lockouts . | . . . . . . . . Manual 26 | . 2 3 1 3 . 7 10 Terminals 35 | . 6 3 6 4 . 14 2 Fabricators 11 | . . . . . . . 11 Repair Stations 3 | . . . . 1 . . 2 Recycling Units 13 | . 3 . . . . 6 4 Scanalyzers 7 | . . . 7 . . . . Garrison Access 1 | . . . . 1 . . . Terminal Hacks 17 | . 3 1 4 2 . 6 1 Robot Analysis 1 | . 1 . . . . . . Prototype ID Bank 7 | . 2 1 . . . 3 1 Open Door 1 | . . . . 1 . . . Branch Access Points 2 | . . . 1 . . 1 . Alert Level 1 | . . . . 1 . . . Unreport Threat 3 | . . . 2 . . 1 . Zone Layout 2 | . . . 1 . . 1 . Fabricator Hacks 2 | . . . . . . . 2 Network Status 2 | . . . . . . . 2 Repair Station Hacks . | . . . . . . . . Recycling Unit Hacks 4 | . 1 . . . . 1 2 Report Inventory 3 | . 1 . . . . 1 1 Retrieve Components 1 | . . . . . . . 1 Scanalyzer 7 | . . . 7 . . . . Insert Component 3 | . . . 3 . . . . Analyze 4 | . . . 4 . . . . Garrison Access Hacks 1 | . . . . 1 . . . Unlock Access 1 | . . . . 1 . . . Unauthorized Hacks 13 | . 2 . . . . 5 6 Terminals 1 | . . . . . . 1 . Botnet 1 | . . . . . . 1 . Fabricators 4 | . . . . . . . 4 Report 1 | . . . . . . . 1 Fabnet 1 | . . . . . . . 1 Haulers 2 | . . . . . . . 2 Repair Stations . | . . . . . . . . Recycling Units 8 | . 2 . . . . 4 2 Reject 1 | . . . . . . . 1 Recyclers 1 | . . . . . . . 1 Tunnel 6 | . 2 . . . . 4 . Scanalyzers . | . . . . . . . . Garrison Access . | . . . . . . . . Data Cores Recovered . | . . . . . . . . Used . | . . . . . . . . Hacking Detections 24 | . 3 1 3 3 . 6 8 Full Trace Events . | . . . . . . . . Feedback Events . | . . . . . . . . Feedback Blocked . | . . . . . . . . Robot Schematics Acquired . | . . . . . . . . Robots Built . | . . . . . . . . Authchips . | . . . . . . . . Time . | . . . . . . . . Total Robot Build Rating . | . . . . . . . . Part Schematics Acquired 3 | . . . 3 . . . . Parts Built . | . . . . . . . . Authchips . | . . . . . . . . Time . | . . . . . . . . Total Part Build Rating . | . . . . . . . . Parts Repaired . | . . . . . . . . Time . | . . . . . . . . Parts Recycled . | . . . . . . . . Recycled Matter . | . . . . . . . . Retrieved Matter . | . . . . . . . . Retrieved Components 9 | . . . . . . . 9 Parts Scanalyzed 3 | . . . 3 . . . . Part Schematics Acquired 3 | . . . 3 . . . . Parts Damaged . | . . . . . . . . Bothacking | -11 -10 -10 -9 -9 -9 -9 -7 ------------ Run | Scr Mat Min Mat Sto Gar Rec Fac Used RIF Installer 1 | . . . . . 1 . . Robots Hacked 6 | . . . . . . . 6 Non-combat 4 | . . . . . . . 4 Combat 2 | . . . . . . . 2 Robot Hacks Applied 7 | . . . . . . . 7 drop_inventory 2 | . . . . . . . 2 map_route 1 | . . . . . . . 1 amplify_resonance 1 | . . . . . . . 1 overwrite_iff 2 | . . . . . . . 2 formatsys_low 1 | . . . . . . . 1 Relay Couplers Released 11 | . . . . . 7 . 4 Machine Destruction 7 | . . . . . 7 . . Programmers 4 | . . . . . . . 4 Attached 4 | . . . . . . . 4 Fabnet Peak Effective % . | . . . . . . . . Robots Rewired . | . . . . . . . . Allies Hacked . | . . . . . . . . Hacks Repelled . | . . . . . . . . Allies | -11 -10 -10 -9 -9 -9 -9 -7 -------- Run | Scr Mat Min Mat Sto Gar Rec Fac Total Allies 3 | . . . . . . . 3 Largest Group 3 | . . . . . . . 3 Highest-Rated Group 63 | . . . . . . . 63 Highest-Rated Ally 24 | . . . . . . . 24 Total Orders 9 | . . . . . 1 . 8 STAY 2 | . . . . . . . 2 FOLLOW 1 | . . . . . . . 1 AID 5 | . . . . . . . 5 EXPLORE 1 | . . . . . 1 . . Ally Attacks 10 | . . . . . . . 10 Total Damage 174 | . . . . . . . 174 Kills . | . . . . . . . . Allies Corrupted . | . . . . . . . . Allies Melted . | . . . . . . . . Intel | -11 -10 -10 -9 -9 -9 -9 -7 ------- Run | Scr Mat Min Mat Sto Gar Rec Fac Robot Analysis Total 1 | . 1 . . . . . . Derelict Logs Recovered 2 | . . 2 . . . . . Drone Launches 1 | . . . . . 1 . . Drone Recoveries 1 | . . . . . 1 . . Exploration | -11 -10 -10 -9 -9 -9 -9 -7 ------------- Run | Scr Mat Min Mat Sto Gar Rec Fac Turns Passed 8304 | 6 619 655 1100 624 2291 1138 1871 Spaces Moved 3315 | 1 267 352 444 166 700 477 908 Core 1 | . . . . . . . 1 Treads 1100 | 1 267 351 . 115 366 . . Legs 346 | . . 1 345 . . . . Wheels 1868 | . . . 99 51 334 477 907 Hover . | . . . . . . . . Flight . | . . . . . . . . Fastest Speed 50 | 160 160 160 145 145 225 225 50 Average Speed 198 | 160 160 162 182 243 274 225 151 Slowest Speed 320 | 160 160 240 260 320 320 225 225 Overloaded Moves . | . . . . . . . . Propulsion Burnouts . | . . . . . . . . Robots Hopped . | . . . . . . . . Cave-ins Triggered . | . . . . . . . . Exploration Rate (%) 49 | 2 56 78 48 31 61 97 25 Regions Visited 7 Branch Regions 3 Pre-discovered Areas 7 | . 2 1 . . . 4 . Known Exits Taken 2 | . . . 1 1 . . . Unknown Exits Taken 4 | 1 1 1 . . . 1 . Scrap Searched 1 | . . 1 . . . . . Spaces Dug 42 | . 5 5 23 . 5 . 4 Terrain Destroyed 361 | . 26 21 125 12 50 28 99 Melee 4 | . . . . . . . 4 Projectile 1 | . . . . 1 . . . AOE 356 | . 26 21 125 11 50 28 95 Terrain Rammed . | . . . . . . . . Walls Destroyed . | . . . . . . . . Machines Disabled . | . . . . . . . . Actions | -11 -10 -10 -9 -9 -9 -9 -7 --------- Run | Scr Mat Min Mat Sto Gar Rec Fac Total 4301 | 8 363 393 616 277 881 504 1259 Wait 259 | . 20 . 24 18 24 . 173 Move 3309 | . 266 351 443 166 699 476 908 Hop . | . . . . . . . . Pick Up 77 | . 11 6 26 9 10 2 13 Fast Attach 19 | . 2 . 2 6 3 . 6 Attach 22 | 3 . 2 6 1 3 . 7 Detach 3 | . . . . . 1 . 2 Swap 110 | . 10 10 21 9 20 2 38 Drop 79 | 5 5 2 19 12 17 2 17 Fire 410 | . 49 22 75 54 102 22 86 Melee 9 | . . . . . . . 9 Ram . | . . . . . . . . Kick . | . . . . . . . . Crush 2 | . . . . 2 . . . Escape Stasis 2 | . . . . . 2 . . Rewire . | . . . . . . . . Trap . | . . . . . . . . Miscellaneous . | . . . . . . . . Route ------- -11/Scrapyard -10/Materials (discovered 2 exits: *Mat / *Min) -10/Mines (discovered 2 exits: *Mat x2) -9/Materials (discovered 6 exits: [*Mat x2] / Min x2 / *Sto x2) -9/Storage -9/Garrison (discovered 3 exits: *Rec x3) -9/Recycling -7/Factory (discovered 2 exits: *Fac / [Low]) History --------- Turn | Location | Event 7 | -11/Scrapyard | Discovered new exit (range 0) 7 | -11/Scrapyard | Entered Materials 248 | -10/Materials | Discovered new exit (range 15) 318 | -10/Materials | Build established: Mutant 539 | -10/Materials | Discovered new exit (range 15) 626 | -10/Materials | Entered Mines 636 | -10/Mines | Core integrity fell below 50% 675 | -10/Mines | Learned Materials interactive machine intel 699 | -10/Mines | Learned location of Storage (-9) 796 | -10/Mines | Found a hidden stash of uninstalled traps 913 | -10/Mines | Discovered new exit (range 14) 1257 | -10/Mines | Discovered new exit (range 8) 1281 | -10/Mines | Entered Materials 1281 | -9/Materials | Evolved 2 slots: Utility x2 1282 | -9/Materials | Loaded intel: 18 interactive machine locations 1853 | -9/Materials | Discovered new exit (range 4) 1876 | -9/Materials | Identified exit to Mines 1876 | -9/Materials | Identified exit to Storage 2032 | -9/Materials | Discovered new exit (range 15) 2381 | -9/Materials | Entered Storage 2616 | -9/Storage | Garrison activated, responded to threat 2919 | -9/Storage | Garrison activated, responded to threat 3005 | -9/Storage | Identified exit to Garrison 3005 | -9/Storage | Entered Garrison 3036 | -9/Garrison | Triggered checkpoint 3071 | -9/Garrison | Discovered new exit (range 53) 3202 | -9/Garrison | Triggered checkpoint 3462 | -9/Garrison | Core integrity fell below 50% 3487 | -9/Garrison | Discovered new exit (range 14) 3551 | -9/Garrison | Build established: Scavenger-Mutant 3695 | -9/Garrison | Triggered checkpoint 3836 | -9/Garrison | Discovered new exit (range 12) 3887 | -9/Garrison | Installed Relay Interface Framework 4806 | -9/Garrison | Triggered checkpoint 4830 | -9/Garrison | Garrison Relay disabled 5018 | -9/Garrison | Triggered checkpoint 5078 | -9/Garrison | Garrison Relay disabled 5296 | -9/Garrison | Entered Recycling 5297 | -9/Recycling | Joined Warlord attack on 0b10 via Recycling 5307 | -9/Recycling | Spotter reported a threat 5321 | -9/Recycling | Spotter reported a threat 5321 | -9/Recycling | Spotter reported a threat 5323 | -9/Recycling | Spotter reported a threat 5327 | -9/Recycling | Spotter reported a threat 5332 | -9/Recycling | Spotter reported a threat 5345 | -9/Recycling | Spotter reported a threat 5356 | -9/Recycling | Spotter reported a threat 5363 | -9/Recycling | Spotter reported a threat 5364 | -9/Recycling | Spotter reported a threat 5410 | -9/Recycling | Spotter reported a threat 5410 | -9/Recycling | Spotter reported a threat 5410 | -9/Recycling | Spotter reported a threat 5411 | -9/Recycling | Spotter reported a threat 5462 | -9/Recycling | Spotter reported a threat 5462 | -9/Recycling | Spotter reported a threat 5462 | -9/Recycling | Spotter reported a threat 5462 | -9/Recycling | Spotter reported a threat 5519 | -9/Recycling | Spotter reported a threat 5528 | -9/Recycling | Spotter reported a threat 5529 | -9/Recycling | Spotter reported a threat 5530 | -9/Recycling | Spotter reported a threat 5564 | -9/Recycling | Spotter reported a threat 5565 | -9/Recycling | Spotter reported a threat 5635 | -9/Recycling | Spotter reported a threat 5635 | -9/Recycling | Spotter reported a threat 5653 | -9/Recycling | Spotter reported a threat 5673 | -9/Recycling | Spotter reported a threat 5688 | -9/Recycling | Spotter reported a threat 5691 | -9/Recycling | Spotter reported a threat 5713 | -9/Recycling | Spotter reported a threat 5713 | -9/Recycling | Spotter reported a threat 5744 | -9/Recycling | Spotter reported a threat 5747 | -9/Recycling | Spotter reported a threat 5767 | -9/Recycling | Spotter reported a threat 5767 | -9/Recycling | Spotter reported a threat 5823 | -9/Recycling | Spotter reported a threat 5823 | -9/Recycling | Spotter reported a threat 5823 | -9/Recycling | Spotter reported a threat 5824 | -9/Recycling | Spotter reported a threat 5866 | -9/Recycling | Spotter reported a threat 5866 | -9/Recycling | Spotter reported a threat 5876 | -9/Recycling | Spotter reported a threat 5917 | -9/Recycling | Spotter reported a threat 5917 | -9/Recycling | Spotter reported a threat 5948 | -9/Recycling | Spotter reported a threat 5972 | -9/Recycling | Spotter reported a threat 5972 | -9/Recycling | Spotter reported a threat 5986 | -9/Recycling | Spotter reported a threat 6032 | -9/Recycling | Spotter reported a threat 6033 | -9/Recycling | Spotter reported a threat 6077 | -9/Recycling | Spotter reported a threat 6077 | -9/Recycling | Spotter reported a threat 6086 | -9/Recycling | Spotter reported a threat 6130 | -9/Recycling | Spotter reported a threat 6155 | -9/Recycling | Spotter reported a threat 6170 | -9/Recycling | Discovered new exit (range 9) 6172 | -9/Recycling | Spotter reported a threat 6194 | -9/Recycling | Spotter reported a threat 6238 | -9/Recycling | Spotter reported a threat 6247 | -9/Recycling | Spotter reported a threat 6288 | -9/Recycling | Spotter reported a threat 6292 | -9/Recycling | Spotter reported a threat 6322 | -9/Recycling | Spotter reported a threat 6346 | -9/Recycling | Spotter reported a threat 6348 | -9/Recycling | Spotter reported a threat 6359 | -9/Recycling | Spotter reported a threat 6399 | -9/Recycling | Spotter reported a threat 6401 | -9/Recycling | Spotter reported a threat 6423 | -9/Recycling | Spotter reported a threat 6423 | -9/Recycling | Spotter reported a threat 6434 | -9/Recycling | Entered Factory 6434 | -7/Factory | Evolved 4 slots: Propulsion x2, Utility x1, Weapon x1 6440 | -7/Factory | 1 allies followed out of Recycling 7123 | -7/Factory | Discovered new exit (range 130) 7634 | -7/Factory | First assault squad dispatched 7677 | -7/Factory | Discovered new exit (range 5) 7683 | -7/Factory | Identified exit to Factory 7897 | -7/Factory | Build established: Bothacker-Skirmisher 8242 | -7/Factory | Cargo convoy interrupted 8294 | -7/Factory | Core integrity fell below 50% 8300 | -7/Factory | Core integrity fell below 20% 8305 | -7/Factory | Destroyed by P-60 Hacker with Shock Rifle Last Messages --------------- 08297_ X-57 Shotgunner suffers critical hit (Blast). 08298_ System corrupted: Energy discharge (-6). 08299_ HV Slug penetrates Wall. 08299_ H-61 Shepherd calls for reinforcements. 08299_ ALERT: Hostile activity reported, dispatching reinforcements to area. 08299_ Penetrated by Slug. 08299_ Mni. Grenade Launcher destroyed. 08299_ Imp. Sensor Array destroyed. 08300_ Penetrated by Slug. 08300_ P-60 Hacker resets A-27 Freighter, system corruption cleaned. 08301_ HV Slug penetrates Wall. 08301_ HV Slug penetrates H-61 Shepherd. 08301_ K-01 Serf collects debris. 08301_ H-61 Shepherd suffers critical hit (Destroy). 08301_ Slug penetrates Earth. 08301_ Relay Coupler [Hunter] destroyed. 08302_ Dropped Huge Storage Unit. 08302_ H-61 Shepherd suffers critical hit (Burn). 08303_ Penetrated by Slug. Map ----- +----------------------------------------------------+ | ???########## ######### # """ """ | | ####???????## ##??????# = # """ """ | | #T ######### #??????# # """ """ | | =#??????# # """ """ | | #??????# # | | / #??????# # """ """ | | ####+####### #??????############## """ """ | | #??### ###???################# """ """ | | #????# #?????# # """ """ | | #????# #?????# # ! | | """" #????# #?????# # """ " [%! | | "??" #????# #?????# # """ " !%%= | | ???? #????# #?????# #= """ " /!! | | ???? #????# #?????# #%*""" " % % | | ????????#????# #?????# +!= | | ?????????????#?#?????# # """ | | ?????????????????????# # """ | | ?????????????????????# # ""% "" | | ?????????????????????### ##+### =""" "" | | ???????????????# ?????# [ ^ r | % F" | | ???????????????# ????# % % = ="" | | ???????????????#/ ??#[[p!h% %[ | | ??????????? ? ##=%[%]! ####### |% | | ?????????? %;;;#;;!u%*=%! ;#????# ### | | ????????? k H !]/]x*!=!||![ #?????? | | ?????????" !%u=]*==H*%@![] ##??????? | | ?????????" =%*]/]=i*=!;]###????????? # ^^ | | ?????????? #;;=;;;;;#]#### #?????????? # | | ?????????????# ?#=????##?????????#?# | | ?????????????# ??#A?????????????????#/## | | ?????????????# ^ ???# ???????????????? ?# | | ?????????????# ????#a????????????????? ??# | | ?????????????" ??????# ?????????????????? ?# | | ?????????????" ???????# ?????????????????? # | | ??????????????????????# ??????????????????? # | | ??????????????????????#?????????????????????+ | | ????????????????????????????????????????????# | | ????????????????????????????????????????????# | | ????????????????????????????????????????????# | | ????????????????????????????????????????????# | | ????????????????????????????????????????????# | | ????????????????????????????????????????"?? # | | ????????????????????????????????????????????# | | ???????????????????????????????############## | | ???????????????????????????????# # | | ???????????????????????????????# # | | ???????????????????????????????# # | | ???????????????????????????????# ! # | | ???????????????????????????????# !! ! =# | | ???????????????????????????????# !! [ *| /% | +----------------------------------------------------+ Best States ------------- Heat Dissipation 48 Energy Generation 16 Energy Capacity 290 Matter Stores 300 Matter Capacity 300 Sight Range 16 Robot Scan Range 15 Terrain Scan Range 16 Terrain Scan Density 10 Armor Coverage 600 Evasion (%) 40 Recoil Reduction 2 Relay Coupler Types 2 Relay Coupler Value 32 Authchip Count 1 Item Schematics ----------------- Plasma Cutter | -9/Materials | Scanalyzed Com. Wheel | -9/Materials | Scanalyzed Hrd. Light Armor Plating | -9/Materials | Scanalyzed Robot Schematics ------------------ None Fabricated ------------ Nothing Alien Tech Used ----------------- None Achievements -------------- None Challenges ------------ None Game ------ Seed DerelictDeuteriumCharger Manual? 0 Play Time 00:44:12 Cumulative 505.0 hours Start 2021.11.22 @ 22:28:58 End 2021.11.22 @ 23:21:35 Sessions 1 Manual Loads 0 Difficulty Rogue Special Mode None Game No. 490 Rogue 490 Adventurer 0 Explorer 0 Win Type - Total 13 Types 9/0/3/1/0/0/0/0/0 Lore% 83 Gallery% 94 Achievement% 72 Wizard Run 0 Options --------- ASCII 0 Keyboard 0 Movement Mouse Keybinds 1 Fullscreen 2 Font 24/Smallcaps Map View 76x50 Tactical HUD 1 Map Filters NONE Filters NONE Steam 1 RUN: 90f0ef1e-6a51-466a-84f3-e2c6855df0fb